bitfinex-derivatives/quotes_BTCF0:USTF0_20260314
["timestamp","ask_amount","ask_price","bid_price","bid_amount"]
[1773505715340,0.07192932,70710.0,70697.0,0.042427]
[1773505715531,0.02812856,70709.0,70697.0,0.042427]
[1773505723645,0.02812856,70709.0,70698.0,0.042427]
[1773505760693,0.02812856,70709.0,70699.0,0.042426]
[1773505762092,0.0014,70710.0,70679.0,0.042438]
[1773505762093,0.06984317,70708.0,70689.0,0.0014]
[1773505762286,0.02742217,70707.0,70689.0,0.0014]
[1773505763083,0.02742217,70707.0,70696.0,0.042428]
[1773505773001,0.042421,70708.0,70696.0,0.042428]
[1773505773202,0.042421,70708.0,70697.0,0.042428]
[1773505773703,0.07969535,70710.0,70697.0,0.042428]
[1773505773903,0.1060799,70710.0,70697.0,0.042428]
[1773505774205,0.042421,70709.0,70697.0,0.042428]
[1773505776104,0.06870177,70709.0,70697.0,0.042428]
[1773505778504,0.02643728,70708.0,70697.0,0.042428]
[1773505791314,0.042421,70709.0,70697.0,0.042428]
[1773505791819,0.0014,70710.0,70690.0,0.07390384]
[1773505792618,0.042419,70712.0,70690.0,0.07390384]
[1773505792818,0.04382,70711.0,70690.0,0.07390384]
[1773505793318,0.04382,70711.0,70699.0,0.042426]
[1773505796219,0.0014,70711.0,70700.0,0.042426]
[1773505802226,0.0014,70711.0,70698.0,0.042427]
[1773505802426,0.02789375,70711.0,70698.0,0.042427]
[1773505803625,0.02789375,70711.0,70692.0,0.119]
[1773505804021,0.0014,70711.0,70701.0,0.042425]
[1773505804226,0.02642404,70711.0,70701.0,0.042425]
[1773505804823,0.0014,70710.0,70701.0,0.042425]
[1773505806817,0.0014,70710.0,70690.0,0.07390384]
[1773505807023,0.0014,70710.0,70699.0,0.042426]
[1773505807230,0.0014,70710.0,70701.0,0.042425]
[1773505807535,0.02642404,70711.0,70701.0,0.042425]
[1773505807730,0.0014,70710.0,70701.0,0.042425]
[1773505809326,0.0014,70710.0,70700.0,0.042425]
[1773505816544,0.02642404,70711.0,70700.0,0.042425]
[1773505816734,0.0014,70709.0,70700.0,0.042425]
[1773505821335,0.0014,70709.0,70701.0,0.042425]
[1773505825748,0.0014,70709.0,70702.0,0.042424]
[1773505831152,0.042418,70713.0,70702.0,0.042424]
[1773505831353,0.0014,70712.0,70702.0,0.042424]
[1773505841966,0.042418,70713.0,70702.0,0.042424]
[1773505842162,0.0014,70711.0,70702.0,0.042424]
[1773505849665,0.0014,70710.0,70702.0,0.042424]
[1773505856774,0.042418,70713.0,70702.0,0.042424]
[1773505856977,0.0014,70712.0,70702.0,0.042424]
[1773505868672,0.4670367,70714.0,70702.0,0.042424]
[1773505868882,0.0014,70713.0,70702.0,0.042424]
[1773505873176,0.042418,70714.0,70702.0,0.042424]
[1773505873382,0.0014,70712.0,70702.0,0.042424]
[1773505873883,0.042418,70714.0,70702.0,0.042424]
[1773505874186,0.0014,70713.0,70702.0,0.042424]
[1773505874670,0.0014,70712.0,70706.0,0.042422]
[1773505875084,0.0014,70711.0,70706.0,0.06359908]
[1773505875274,0.0014,70710.0,70706.0,0.06359908]
[1773505875875,0.02214695,70726.0,70706.0,0.06359908]
[1773505876081,0.042415,70719.0,70706.0,0.06359908]
[1773505876281,0.0014,70718.0,70706.0,0.06359908]
[1773505876679,0.042415,70719.0,70689.0,0.00969771]
[1773505876680,0.12570477,70726.0,70707.0,0.02117708]
[1773505876983,0.161103,70730.0,70710.0,0.04242]
[1773505876984,0.01124,70723.0,70710.0,0.04242]
[1773505877683,0.0014,70722.0,70710.0,0.04242]
[1773505878374,0.043813,70722.0,70710.0,0.04242]
[1773505883391,0.0014,70722.0,70711.0,0.042419]
[1773505897115,0.043813,70722.0,70711.0,0.042419]
[1773505898115,0.07387307,70721.0,70701.0,0.042425]
[1773505898311,0.0338825,70720.0,70692.0,0.03533791]
[1773505898511,0.042417,70715.0,70702.0,0.042424]
[1773505898713,0.0014,70714.0,70702.0,0.042424]
[1773505908621,0.0014,70714.0,70703.0,0.042424]
[1773505919741,0.0014,70714.0,70704.0,0.042423]
[1773505925832,0.0014,70714.0,70702.0,0.042424]
[1773505926132,0.0014,70714.0,70702.0,0.0743697]
[1773505928738,0.0014,70714.0,70703.0,0.042424]
[1773505929223,0.0014,70714.0,70704.0,0.042423]
[1773505954261,0.0014,70714.0,70705.0,0.042423]
[1773505968469,0.0014,70714.0,70706.0,0.0316345]
[1773505970874,0.042416,70717.0,70706.0,0.0316345]
[1773505971056,0.0014,70716.0,70706.0,0.0316345]
[1773505986595,0.042416,70717.0,70706.0,0.0316345]
[1773505986785,0.0014,70715.0,70706.0,0.0316345]
[1773505987094,0.042416,70717.0,70706.0,0.0316345]
[1773505987293,0.0014,70716.0,70706.0,0.0316345]
[1773505988993,0.0014,70716.0,70706.0,0.03092691]
[1773505998702,0.0014,70716.0,70691.0,0.0014]
[1773505998903,0.0014,70716.0,70692.0,0.01963056]
[1773505999704,0.20422587,70715.0,70692.0,0.01960245]
[1773506000006,0.20422587,70714.0,70692.0,0.01960245]
[1773506000301,0.20422587,70713.0,70692.0,0.01960245]
[1773506000602,0.20422587,70712.0,70692.0,0.01960245]
[1773506000804,0.20422587,70711.0,70692.0,0.01960245]
[1773506001003,0.20562587,70710.0,70704.0,0.07207448]
[1773506001301,0.20562587,70709.0,70706.0,0.04305387]
[1773506001490,8.7e-07,70709.0,70706.0,0.02103683]
[1773506001691,8.7e-07,70709.0,70706.0,0.03372353]
[1773506005207,8.7e-07,70709.0,70706.0,0.07614553]
[1773506008511,8.7e-07,70709.0,70706.0,0.042422]
[1773506008804,8.7e-07,70709.0,70706.0,0.08547587]
[1773506011908,0.042416,70718.0,70706.0,0.08547587]
[1773506012095,0.0014,70717.0,70706.0,0.08547587]
[1773506013214,0.042416,70718.0,70706.0,0.08547587]
[1773506013403,0.0014,70716.0,70706.0,0.08547587]
[1773506015816,0.41603114,70722.0,70707.0,0.03978434]
[1773506016112,0.0014,70721.0,70707.0,0.03978434]
[1773506016309,0.0014,70723.0,70701.0,0.03978434]
[1773506016503,0.0014,70722.0,70701.0,0.03978434]
[1773506017101,0.01124,70726.0,70702.0,0.03880166]
[1773506017300,0.01124,70726.0,70703.0,0.03880166]
[1773506017301,0.001,70721.0,70703.0,0.03880166]
[1773506017504,0.0014,70720.0,70703.0,0.03880166]
[1773506017705,0.0014,70720.0,70715.0,0.042417]
[1773506018004,0.0014,70719.0,70715.0,0.042417]
[1773506018411,0.001,70721.0,70715.0,0.042417]
[1773506018609,0.0014,70720.0,70715.0,0.042417]
[1773506018911,0.001,70721.0,70715.0,0.042417]
[1773506019109,0.0014,70720.0,70715.0,0.042417]
[1773506019309,0.001,70721.0,70713.0,0.042418]
[1773506019511,0.0014,70720.0,70713.0,0.042418]
[1773506019906,0.0014,70720.0,70701.0,0.03398688]
[1773506019907,0.042416,70718.0,70701.0,0.03398688]
[1773506020111,0.042416,70718.0,70692.0,0.04243]
[1773506020112,0.042416,70717.0,70705.0,0.042423]
[1773506020512,0.042415,70719.0,70698.0,0.03398688]
[1773506022000,0.042415,70719.0,70707.0,0.042421]
[1773506024820,0.07528368,70720.0,70703.0,0.03649539]
[1773506025017,0.19888837,70719.0,70703.0,0.03649539]
[1773506025216,0.19888837,70718.0,70703.0,0.03649539]
[1773506025426,0.19888837,70717.0,70703.0,0.03649539]
[1773506025608,0.19888837,70716.0,70703.0,0.03649539]
[1773506025915,0.19888837,70715.0,70703.0,0.03649539]
[1773506026117,0.0014,70720.0,70703.0,0.03649539]
[1773506026118,0.20028837,70714.0,70707.0,0.042421]
[1773506026417,0.19888837,70713.0,70703.0,0.03649539]
[1773506026616,0.0014,70714.0,70703.0,0.03649539]
[1773506027318,0.0014,70714.0,70706.0,0.042422]
[1773506029019,0.0014,70714.0,70707.0,0.042421]
[1773506039526,0.42414019,70725.0,70701.0,0.03449637]
[1773506039826,0.54945423,70728.0,70712.0,0.042418]
[1773506040421,0.12531404,70728.0,70710.0,0.03449637]
[1773506040625,0.12531404,70728.0,70700.0,0.07388368]
[1773506040626,0.0014,70725.0,70701.0,0.03388587]
[1773506040925,0.0014,70725.0,70716.0,0.042416]
[1773506041429,0.49802387,70730.0,70715.0,0.07388368]
[1773506041430,0.0014,70730.0,70715.0,0.07388368]
[1773506041629,0.0014,70729.0,70721.0,0.03321016]
[1773506041831,0.0014,70728.0,70721.0,0.03321016]
[1773506042022,0.0014,70728.0,70724.0,0.042411]
[1773506042220,0.01124,70734.0,70710.0,0.07388368]
[1773506042424,0.01404,70734.0,70710.0,0.07388368]
[1773506042732,0.01124,70734.0,70711.0,0.00016026]
[1773506044034,0.01124,70734.0,70726.0,0.04241]
[1773506044932,0.0014,70736.0,70726.0,0.04241]
[1773506045133,0.0028,70735.0,70726.0,0.04241]
[1773506045628,0.042401,70743.0,70710.0,0.07388368]
[1773506045827,0.042401,70743.0,70709.0,0.04382]
[1773506045828,0.0014,70742.0,70730.0,0.042407]
[1773506046032,0.0014,70741.0,70731.0,0.042407]
[1773506046533,0.0014,70740.0,70731.0,0.042407]
[1773506046735,0.0014,70740.0,70729.0,0.042408]
[1773506048836,0.0014,70740.0,70700.0,0.12576533]
[1773506048837,0.0463909,70739.0,70713.0,0.0014]
[1773506049035,0.07388368,70730.0,70713.0,0.0014]
[1773506049235,0.0014,70729.0,70713.0,0.0014]
[1773506049633,0.0014,70729.0,70720.0,0.042413]
[1773506049835,0.0014,70729.0,70722.0,0.042412]
[1773506053033,0.0014,70728.0,70722.0,0.042412]
[1773506053333,0.042405,70735.0,70722.0,0.042412]
[1773506053334,0.0014,70727.0,70722.0,0.042412]
[1773506054032,0.042405,70735.0,70720.0,0.042414]
[1773506054335,0.0014,70732.0,70722.0,0.042412]
[1773506056447,0.0014,70732.0,70723.0,0.042412]
[1773506056939,0.0014,70731.0,70723.0,0.042412]
[1773506061747,0.0014,70730.0,70719.0,0.042414]
[1773506062537,0.0014,70730.0,70720.0,0.042413]
[1773506062742,0.0014,70730.0,70722.0,0.042412]
[1773506065647,0.0014,70731.0,70722.0,0.042412]
[1773506069347,0.0014,70731.0,70711.0,0.0014]
[1773506069348,0.0014,70731.0,70724.0,0.042411]
[1773506069545,0.0014,70730.0,70724.0,0.042411]
[1773506070053,0.0014,70730.0,70722.0,0.042412]
[1773506070553,0.0014,70730.0,70723.0,0.042412]
[1773506076644,0.0014,70731.0,70724.0,0.042411]
[1773506077050,0.0014,70730.0,70724.0,0.042411]
[1773506077658,0.0014,70729.0,70711.0,0.0014]
[1773506077855,0.0056,70729.0,70711.0,0.0014]
[1773506078355,0.0042,70729.0,70711.0,0.0014]
[1773506079559,0.0014,70728.0,70711.0,0.0014]
[1773506079855,0.0014,70728.0,70722.0,0.042412]
[1773506080057,0.0014,70727.0,70722.0,0.042412]
[1773506080359,0.0014,70728.0,70722.0,0.042412]
[1773506080660,0.0014,70727.0,70722.0,0.04170462]
[1773506080965,0.0014,70728.0,70722.0,0.04170462]
[1773506081152,0.0056,70727.0,70722.0,0.04170462]
[1773506081656,0.0014,70726.0,70722.0,0.04170462]
[1773506082056,0.0042,70727.0,70722.0,0.04170462]
[1773506082259,0.05805614,70737.0,70711.0,0.0014]
[1773506082260,0.0014,70726.0,70725.0,0.042411]
[1773506083445,0.053644,70737.0,70726.0,0.04241]
[1773506083446,0.0014,70727.0,70726.0,0.04241]
[1773506084160,0.0014,70727.0,70726.0,0.02996575]
[1773506085458,0.0014,70729.0,70726.0,0.02996575]
[1773506089870,0.01124,70737.0,70726.0,0.02996575]
[1773506090063,0.0014,70736.0,70726.0,0.02996575]
[1773506091562,0.42427656,70736.0,70726.0,0.02996575]
[1773506098184,0.42427656,70736.0,70724.0,0.042411]
[1773506099185,0.42287656,70736.0,70724.0,0.042411]
[1773506099386,0.0014,70735.0,70724.0,0.042411]
[1773506100285,0.0014,70735.0,70725.0,0.042411]
[1773506141209,0.0014,70735.0,70726.0,0.04241]
[1773506141608,0.42287656,70741.0,70728.0,0.042409]
[1773506141908,0.043802,70740.0,70726.0,0.04241]
[1773506142108,0.042403,70739.0,70726.0,0.04241]
[1773506142509,0.0014,70738.0,70720.0,0.0738482]
[1773506142708,0.0014,70738.0,70730.0,0.042408]
[1773506143801,0.0014,70738.0,70731.0,0.042407]
[1773506147415,0.0014,70738.0,70732.0,0.042406]
[1773506148420,0.0014,70738.0,70720.0,0.0738482]
[1773506149817,0.0014,70738.0,70732.0,0.042406]
[1773506153913,0.0014,70738.0,70733.0,0.042406]
[1773506161425,0.0014,70737.0,70734.0,0.042405]
[1773506161623,0.0014,70736.0,70734.0,0.042405]
[1773506164528,0.053639,70746.0,70734.0,0.042405]
[1773506164823,0.0014,70740.0,70734.0,0.042405]
[1773506165025,0.0014,70740.0,70732.0,0.042406]
[1773506165625,0.043799,70745.0,70732.0,0.042406]
[1773506167429,0.0424,70744.0,70732.0,0.042406]
[1773506167627,0.0014,70745.0,70721.0,0.119]
[1773506167927,0.0014,70740.0,70721.0,0.119]
[1773506168428,0.0014,70740.0,70720.0,0.0738482]
[1773506170432,0.0014,70740.0,70734.0,0.042405]
[1773506171122,0.0014,70740.0,70729.0,0.042408]
[1773506171331,0.1176502,70740.0,70728.0,0.042409]
[1773506171830,0.0014,70740.0,70729.0,0.042408]
[1773506173130,0.0014,70740.0,70715.0,0.042417]
[1773506173131,0.0014,70740.0,70730.0,0.042407]
[1773506173332,0.0014,70740.0,70729.0,0.042408]
[1773506174622,0.0014,70740.0,70730.0,0.042408]
[1773506180530,0.042401,70742.0,70730.0,0.042408]
[1773506180729,0.0014,70739.0,70730.0,0.042408]
[1773506180928,0.0014,70738.0,70730.0,0.042408]
[1773506187041,0.04639993,70736.0,70698.0,0.042427]
[1773506187241,0.042406,70734.0,70700.0,0.0738482]
[1773506187441,0.042406,70734.0,70720.0,0.042414]
[1773506187843,0.0014,70730.0,70720.0,0.042414]
[1773506188045,0.04651594,70729.0,70709.0,0.0014]
[1773506188244,0.08892694,70726.0,70708.0,0.0014]
[1773506188444,0.08892694,70726.0,70707.0,0.0014]
[1773506188647,0.0014,70722.0,70713.0,0.042418]
[1773506188836,0.0014,70721.0,70690.0,0.0738482]
[1773506189042,0.043813,70721.0,70690.0,0.0738482]
[1773506189242,0.043813,70721.0,70693.0,0.0014]
[1773506189748,0.043813,70721.0,70694.0,0.0014]
[1773506189949,0.043813,70721.0,70708.0,0.042421]
[1773506190149,0.043813,70721.0,70683.0,0.01125]
[1773506190150,0.0014,70721.0,70700.0,0.0738482]
[1773506190350,0.0014,70721.0,70701.0,0.0014]
[1773506190643,0.0014,70717.0,70701.0,0.0014]
[1773506190849,0.0014,70717.0,70712.0,0.042418]
[1773506192247,0.0014,70717.0,70710.0,0.04242]
[1773506196361,0.0014,70717.0,70701.0,0.0014]
[1773506196662,0.0014,70717.0,70711.0,0.042419]
[1773506199868,0.0014,70717.0,70709.0,0.04242]
[1773506200463,0.0014,70721.0,70709.0,0.04242]
[1773506200663,0.0014,70717.0,70709.0,0.04242]
[1773506201471,0.0014,70717.0,70711.0,0.042419]
[1773506205770,0.0014,70721.0,70711.0,0.042419]
[1773506212373,0.0014,70721.0,70701.0,0.0014]
[1773506212374,0.0014,70721.0,70709.0,0.04242]
[1773506212573,0.0014,70718.0,70709.0,0.04242]
[1773506212775,0.0014,70718.0,70710.0,0.04242]
[1773506216071,0.0014,70718.0,70711.0,0.042419]
[1773506220381,0.0014,70720.0,70711.0,0.042419]
[1773506222282,0.0014,70720.0,70712.0,0.042418]
[1773506222484,0.0014,70718.0,70712.0,0.042418]
[1773506225679,0.042409,70729.0,70716.0,0.042416]
[1773506225887,0.042409,70729.0,70717.0,0.042415]
[1773506225888,0.0014,70728.0,70717.0,0.042415]
[1773506228984,0.042409,70729.0,70717.0,0.042415]
[1773506228985,0.0014,70727.0,70717.0,0.042415]
[1773506229182,0.0014,70721.0,70717.0,0.042415]
[1773506229385,0.0014,70725.0,70717.0,0.042415]
[1773506229784,0.042409,70729.0,70717.0,0.042415]
[1773506230087,0.0014,70728.0,70717.0,0.042415]
[1773506230386,0.0014,70727.0,70717.0,0.042415]
[1773506231288,0.0014,70726.0,70710.0,0.0014]
[1773506231488,0.0014,70725.0,70710.0,0.0014]
[1773506231679,0.042408,70730.0,70710.0,0.0014]
[1773506231885,0.0014,70729.0,70710.0,0.0014]
[1773506232188,0.042408,70730.0,70710.0,0.0014]
[1773506232488,0.0014,70729.0,70718.0,0.042415]
[1773506232686,0.042408,70730.0,70718.0,0.042415]
[1773506232885,0.0014,70729.0,70718.0,0.042415]
[1773506233085,0.042408,70730.0,70718.0,0.042415]
[1773506233086,0.0014,70728.0,70718.0,0.042415]
[1773506233487,0.042408,70730.0,70718.0,0.042415]
[1773506233678,0.0014,70729.0,70718.0,0.042415]
[1773506234291,0.43551656,70734.0,70710.0,0.07526921]
[1773506234483,0.01264,70734.0,70720.0,0.07386921]
[1773506234686,0.01264,70734.0,70718.0,0.0014]
[1773506235594,0.01264,70734.0,70720.0,0.07386921]
[1773506235892,0.01124,70734.0,70720.0,0.07386921]
[1773506236686,0.043803,70739.0,70720.0,0.07386921]
[1773506237494,0.043803,70739.0,70727.0,0.042409]
[1773506239496,0.0014,70739.0,70727.0,0.042409]
[1773506241090,0.043803,70739.0,70727.0,0.042409]
[1773506241982,0.0014,70739.0,70732.0,0.042406]
[1773506242185,0.01124,70742.0,70729.0,0.07386921]
[1773506242392,0.01124,70742.0,70733.0,0.042406]
[1773506242698,0.0014,70745.0,70733.0,0.042406]
[1773506242898,0.0014,70745.0,70729.0,0.07386921]
[1773506242899,0.042396,70750.0,70736.0,0.042404]
[1773506243087,0.0014,70749.0,70736.0,0.042404]
[1773506244501,0.043797,70749.0,70734.0,0.042405]
[1773506244694,0.0014,70749.0,70728.0,0.0014]
[1773506244887,0.0014,70749.0,70734.0,0.042405]
[1773506245091,0.043797,70749.0,70734.0,0.042405]
[1773506245290,0.042398,70747.0,70733.0,0.042406]
[1773506245493,0.0014,70749.0,70731.0,0.042407]
[1773506246501,0.0014,70748.0,70731.0,0.043807]
[1773506247004,0.0424,70745.0,70731.0,0.043807]
[1773506247502,0.0424,70745.0,70732.0,0.042406]
[1773506249598,0.0014,70748.0,70730.0,0.042408]
[1773506249789,0.11950401,70740.0,70721.0,0.119]
[1773506249992,0.11950401,70740.0,70699.0,0.042426]
[1773506249993,0.0880388,70737.0,70724.0,0.042411]
[1773506250205,0.042408,70731.0,70716.0,0.0014]
[1773506250702,0.0014,70732.0,70717.0,0.042416]
[1773506250893,0.11627721,70730.0,70717.0,0.042416]
[1773506251093,0.042409,70729.0,70715.0,0.043817]
[1773506251397,0.04241,70728.0,70715.0,0.042417]
[1773506252204,0.042409,70729.0,70714.0,0.0014]
[1773506253205,0.042409,70729.0,70715.0,0.042417]
[1773506254104,0.04241,70728.0,70715.0,0.042417]
[1773506254803,0.04241,70728.0,70712.0,0.0014]
[1773506256205,0.04241,70727.0,70712.0,0.0014]
[1773506256790,0.07386921,70730.0,70712.0,0.0014]
[1773506257002,0.042412,70723.0,70705.0,0.042423]
[1773506257202,0.042412,70723.0,70706.0,0.0014]
[1773506257403,0.042411,70725.0,70707.0,0.042421]
[1773506257606,0.043811,70725.0,70707.0,0.042421]
[1773506259109,0.043811,70725.0,70708.0,0.042421]
[1773506260407,0.043811,70725.0,70708.0,0.043821]
[1773506261210,0.042412,70724.0,70708.0,0.043821]
[1773506272317,0.042412,70724.0,70709.0,0.0014]
[1773506273416,0.042412,70723.0,70709.0,0.0014]
[1773506277222,0.043811,70725.0,70709.0,0.04382]
[1773506277422,0.042412,70724.0,70709.0,0.04382]
[1773506277920,0.042412,70723.0,70709.0,0.04382]
[1773506280016,0.042413,70722.0,70709.0,0.0014]
[1773506280217,0.042414,70721.0,70709.0,0.0014]
[1773506280412,0.042414,70721.0,70709.0,0.1204]
[1773506280612,0.042414,70721.0,70709.0,0.0014]
[1773506284525,0.0014,70725.0,70709.0,0.0014]
[1773506284824,0.042412,70724.0,70709.0,0.0014]
[1773506285525,0.042412,70723.0,70709.0,0.0014]
[1773506292732,0.042412,70723.0,70709.0,0.1204]
[1773506295734,0.042412,70723.0,70709.0,0.0014]
[1773506298941,0.042412,70723.0,70709.0,0.04382]
[1773506301434,0.0448496,70724.0,70700.0,0.07386669]
[1773506301633,0.042415,70718.0,70705.0,0.042423]
[1773506302137,0.0448496,70719.0,70706.0,0.043822]
[1773506303138,0.0448496,70719.0,70707.0,0.042421]
[1773506305744,0.0872646,70719.0,70706.0,0.0014]
[1773506306143,0.042415,70719.0,70706.0,0.0014]
[1773506307144,0.042415,70719.0,70706.0,0.043822]
[1773506315455,0.08768025,70719.0,70706.0,0.043822]
[1773506315656,0.04526525,70719.0,70707.0,0.042421]
[1773506315953,0.04526525,70719.0,70707.0,0.043821]
[1773506316155,0.08768025,70719.0,70707.0,0.043821]
[1773506316849,0.08768025,70719.0,70707.0,0.042421]
[1773506317055,0.08768025,70719.0,70707.0,0.043821]
[1773506317554,0.08768025,70719.0,70707.0,0.0014]
[1773506317555,0.04526525,70719.0,70707.0,0.0014]
[1773506317751,0.04542406,70711.0,70700.0,0.0014]
[1773506318056,0.08784406,70710.0,70700.0,0.0014]
[1773506318355,0.03693866,70709.0,70694.0,0.042429]
[1773506319950,0.042421,70708.0,70694.0,0.042429]
[1773506321758,0.042422,70707.0,70694.0,0.042429]
[1773506327261,0.042422,70707.0,70695.0,0.042429]
[1773506327761,0.07935966,70709.0,70695.0,0.042429]
[1773506328660,0.0367794,70708.0,70695.0,0.042429]
[1773506329564,0.0381794,70707.0,70695.0,0.042429]
[1773506333166,0.0381794,70707.0,70696.0,0.042428]
[1773506335966,0.0381794,70707.0,70696.0,0.043428]
[1773506337569,0.0381794,70707.0,70696.0,0.042428]
[1773506352184,0.0381794,70707.0,70697.0,0.042427]
[1773506354288,0.01125,70717.0,70697.0,0.0738976]
[1773506354584,0.0014,70716.0,70697.0,0.0738976]
[1773506354782,0.0014,70716.0,70698.0,0.0014]
[1773506355983,0.0014,70716.0,70704.0,0.042423]
[1773506356382,0.0014,70716.0,70705.0,0.042423]
[1773506356889,0.0014,70716.0,70706.0,0.042422]
[1773506358681,0.03070789,70715.0,70692.0,0.0001819]
[1773506358880,0.03070789,70711.0,70693.0,0.0014]
[1773506359787,0.0014,70710.0,70702.0,0.042424]
[1773506360089,0.03073991,70709.0,70692.0,0.0015819]
[1773506361082,0.03073991,70709.0,70698.0,0.042427]
[1773506364390,0.042421,70709.0,70696.0,0.042428]
[1773506364592,0.03054858,70708.0,70696.0,0.042428]
[1773506365693,0.03054858,70708.0,70697.0,0.042427]
[1773506367892,0.0304755,70709.0,70695.0,0.042429]
[1773506368283,0.042422,70707.0,70696.0,0.042428]
[1773506368590,0.0728965,70709.0,70696.0,0.042428]
[1773506369393,0.07282343,70709.0,70696.0,0.042428]
[1773506369799,0.03040037,70707.0,70696.0,0.03521896]
[1773506370096,0.03040037,70707.0,70696.0,0.02485179]
[1773506370296,0.03040037,70707.0,70696.0,0.02085179]
[1773506395220,0.03040037,70707.0,70694.0,0.042429]
[1773506395720,0.03040037,70707.0,70692.0,0.0001819]
[1773506395721,0.03040037,70707.0,70695.0,0.042429]
[1773506398310,0.03040037,70707.0,70692.0,0.0001819]
[1773506398520,0.0297159,70691.0,70681.0,0.0431444]
[1773506398719,0.0297159,70691.0,70681.0,0.04174446]
[1773506398918,0.0297159,70691.0,70676.0,0.0014]
[1773506399416,0.00017933,70690.0,70676.0,0.0014]
[1773506399615,0.00017933,70690.0,70676.0,0.01265]
[1773506400126,0.00017933,70690.0,70683.0,0.042436]
[1773506400921,0.00017933,70690.0,70676.0,0.01265]
[1773506400922,0.00017933,70690.0,70676.0,0.01125]
[1773506402030,0.00017933,70690.0,70683.0,0.042436]
[1773506405327,0.00017933,70690.0,70678.0,0.02473094]
[1773506405528,0.053677,70698.0,70686.0,0.042434]
[1773506405725,0.0014,70697.0,70686.0,0.042434]
[1773506405924,0.0014,70696.0,70686.0,0.042434]
[1773506406133,0.0014,70696.0,70684.0,0.042435]
[1773506408034,0.043829,70696.0,70684.0,0.042435]
[1773506411438,0.06845141,70696.0,70684.0,0.042435]
[1773506412438,0.02602241,70696.0,70685.0,0.042434]
[1773506415340,0.20019644,70695.0,70683.0,0.042436]
[1773506415640,0.20019644,70694.0,70683.0,0.042436]
[1773506415838,0.20019644,70693.0,70683.0,0.042436]
[1773506416040,0.20019644,70692.0,70683.0,0.042436]
[1773506416241,0.20019644,70691.0,70683.0,0.042436]
[1773506416440,0.20019644,70690.0,70683.0,0.042436]
[1773506416736,0.20019644,70689.0,70683.0,0.042436]
[1773506417043,0.20019644,70688.0,70683.0,0.042436]
[1773506417338,0.20019644,70687.0,70683.0,0.042436]
[1773506417539,4.4e-07,70686.0,70683.0,0.042436]
[1773506417741,0.06845141,70696.0,70683.0,0.042436]
[1773506420539,0.042433,70689.0,70676.0,0.05369]
[1773506420743,0.0014,70688.0,70677.0,0.042439]
[1773506420940,0.042435,70685.0,70676.0,0.01125]
[1773506421143,0.042435,70685.0,70674.0,0.042441]
[1773506421144,0.02462241,70685.0,70674.0,0.042441]
[1773506421546,0.02462241,70685.0,70663.0,0.02473094]
[1773506421848,0.02462241,70685.0,70674.0,0.042441]
[1773506422247,0.02462241,70685.0,70678.0,0.01125]
[1773506422542,0.0014,70688.0,70678.0,0.01125]
[1773506423050,0.00725,70681.0,70678.0,0.01125]
[1773506423247,0.0014,70688.0,70678.0,0.01125]
[1773506423843,0.0014,70688.0,70671.0,0.02766562]
[1773506424033,0.0014,70688.0,70678.0,0.042439]
[1773506433756,0.0014,70688.0,70677.0,0.01125]
[1773506441963,0.01125,70698.0,70679.0,0.02766562]
[1773506442263,0.0014,70697.0,70687.0,0.02766562]
[1773506442657,0.0014,70696.0,70687.0,0.02766562]
[1773506443263,0.0014,70695.0,70687.0,0.02766562]
[1773506444563,0.042427,70699.0,70687.0,0.02766562]
[1773506444763,0.043827,70698.0,70687.0,0.02766562]
[1773506444968,0.0014,70697.0,70687.0,0.02766562]
[1773506445167,0.0014,70696.0,70687.0,0.02766562]
[1773506445567,0.042427,70698.0,70687.0,0.02766562]
[1773506445770,0.0014,70697.0,70687.0,0.02766562]
[1773506446161,0.0014,70696.0,70687.0,0.02766562]
[1773506453172,0.0014,70696.0,70687.0,0.07009862]
[1773506453372,0.042427,70699.0,70687.0,0.07009862]
[1773506453583,0.0014,70698.0,70687.0,0.07009862]
[1773506454076,0.0014,70698.0,70688.0,0.02769261]
[1773506456283,0.042424,70703.0,70692.0,0.042431]
[1773506456477,0.0014,70702.0,70691.0,0.02769261]
[1773506457877,0.0014,70701.0,70691.0,0.02769261]
[1773506461985,0.0014,70701.0,70688.0,0.042433]
[1773506462386,0.043826,70701.0,70689.0,0.07012461]
[1773506462588,0.0014,70701.0,70691.0,0.042431]
[1773506463678,0.042424,70703.0,70691.0,0.042431]
[1773506463886,0.0014,70702.0,70692.0,0.02769261]
[1773506464685,0.043825,70702.0,70692.0,0.02769261]
[1773506464888,0.0014,70701.0,70692.0,0.02769261]
[1773506466389,0.02706828,70715.0,70680.0,0.07391084]
[1773506466390,0.42287656,70712.0,70697.0,0.02769261]
[1773506466590,0.0014,70711.0,70701.0,0.07011761]
[1773506466792,0.0014,70710.0,70702.0,0.02769261]
[1773506466991,0.0014,70709.0,70702.0,0.02769261]
[1773506467790,0.042418,70713.0,70702.0,0.02769261]
[1773506467992,0.0014,70712.0,70702.0,0.02769261]
[1773506468185,0.0014,70711.0,70702.0,0.02769261]
[1773506469693,0.0014,70710.0,70702.0,0.02769261]
[1773506473188,0.042418,70713.0,70702.0,0.02769261]
[1773506473392,0.0014,70712.0,70702.0,0.02769261]
[1773506473593,0.0014,70711.0,70702.0,0.02769261]
[1773506473991,0.042418,70713.0,70702.0,0.02769261]
[1773506474191,0.0014,70712.0,70702.0,0.02769261]
[1773506478802,0.042418,70713.0,70702.0,0.02769261]
[1773506479102,0.0014,70712.0,70702.0,0.02769261]
[1773506479289,0.042418,70713.0,70702.0,0.02769261]
[1773506479595,0.0014,70712.0,70702.0,0.02769261]
[1773506479999,0.042418,70713.0,70702.0,0.02769261]
[1773506480298,0.0014,70712.0,70702.0,0.02769261]
[1773506483093,0.0014,70711.0,70702.0,0.02769261]
[1773506483591,0.042418,70713.0,70702.0,0.02769261]
[1773506483790,0.0014,70710.0,70702.0,0.02769261]